bitfinex/quotes_BTCUSD_20220306
["timestamp","ask_amount","ask_price","bid_price","bid_amount"]
[1646556376064,1.10951239,39240.0,39239.0,2.20200058]
[1646556376266,1.09486667,39240.0,39239.0,2.20200058]
[1646556376465,1.09486667,39240.0,39239.0,2.70200058]
[1646556376466,1.0280422,39240.0,39239.0,2.70200058]
[1646556376667,1.01008764,39240.0,39239.0,2.70200058]
[1646556376868,0.89839074,39240.0,39239.0,2.70200058]
[1646556378119,0.84516787,39240.0,39239.0,2.70200058]
[1646556378317,0.84516787,39240.0,39239.0,1.75102058]
[1646556378718,0.84516787,39240.0,39239.0,1.44599794]
[1646556378920,0.84516787,39240.0,39239.0,0.27148186]
[1646556379318,0.8471475,39240.0,39239.0,0.0763816]
[1646556379520,0.8471475,39240.0,39239.0,0.0509]
[1646556383762,0.8471475,39240.0,39239.0,0.13811921]
[1646556389364,0.84618219,39240.0,39239.0,0.13811921]
[1646556390771,0.2025525,39238.0,39234.0,0.04250429]
[1646556391268,0.2025525,39238.0,39232.0,0.0509]
[1646556391269,0.30622902,39237.0,39232.0,0.0509]
[1646556391666,0.17139673,39236.0,39232.0,0.0509]
[1646556391866,0.17161909,39236.0,39235.0,0.00025486]
[1646556392665,0.2025525,39238.0,39235.0,0.00025486]
[1646556392666,0.2025525,39238.0,39236.0,0.00010606]
[1646556393122,0.0002154,39237.0,39236.0,0.00010606]
[1646556393918,0.39116397,39238.0,39236.0,0.00010606]
[1646556394118,0.39137936,39238.0,39236.0,0.00010606]
[1646556394319,0.20276789,39238.0,39236.0,0.00010606]
[1646556395320,0.17148594,39237.0,39236.0,0.00010606]
[1646556395723,0.2025525,39238.0,39236.0,0.00010606]
[1646556398471,0.39729553,39238.0,39236.0,0.00010606]
[1646556398670,0.2025525,39238.0,39236.0,0.00010606]
[1646556399272,0.00100292,39237.0,39236.0,0.00010606]
[1646556399474,0.00076706,39237.0,39236.0,0.00010606]
[1646556401923,0.19628986,39237.0,39236.0,0.00010606]
[1646556402521,0.19405275,39237.0,39236.0,0.00010606]
[1646556404770,0.19504256,39237.0,39236.0,0.00010606]
[1646556405370,0.00098981,39237.0,39236.0,0.00010606]
[1646556406470,0.19862241,39237.0,39236.0,0.00010606]
[1646556406671,0.00098981,39237.0,39236.0,0.00010606]
[1646556408414,0.1694243,39241.0,39236.0,0.00010606]
[1646556408415,0.381801,39245.0,39240.0,1.7956245]
[1646556408618,0.3071,39246.0,39240.0,1.7956245]
[1646556408619,0.18615633,39243.0,39240.0,1.7956245]
[1646556410817,0.15,39246.0,39240.0,1.7956245]
[1646556411017,0.381801,39245.0,39240.0,1.7956245]
[1646556411423,0.20694839,39247.0,39240.0,1.7956245]
[1646556411620,0.35694839,39248.0,39240.0,1.7956245]
[1646556411882,0.2,39248.0,39240.0,1.7956245]
[1646556412279,0.0002224,39246.0,39240.0,1.7956245]
[1646556413079,0.18537605,39245.0,39240.0,1.7956245]
[1646556413479,0.00022241,39245.0,39240.0,1.7956245]
[1646556414378,0.70781993,39248.0,39241.0,0.00444206]
[1646556414379,0.20694839,39247.0,39241.0,0.00444206]
[1646556414581,0.00022187,39244.0,39241.0,0.00444206]
[1646556415622,0.68243993,39248.0,39241.0,0.00444206]
[1646556415821,0.00022187,39244.0,39241.0,0.00444206]
[1646556416820,0.15,39246.0,39241.0,0.00444206]
[1646556417021,0.00022187,39244.0,39241.0,0.00444206]
[1646556418024,0.34759819,39246.0,39241.0,0.00444206]
[1646556418927,0.58874939,39245.0,39241.0,0.00444206]
[1646556419128,0.20694839,39244.0,39241.0,0.00444206]
[1646556419372,0.05974498,39242.0,39241.0,0.00444206]
[1646556419572,0.79849437,39242.0,39240.0,1.79212044]
[1646556419774,0.42264034,39241.0,39240.0,1.79212044]
[1646556419970,0.80444134,39241.0,39240.0,1.79212044]
[1646556420571,0.59749295,39241.0,39240.0,1.79212044]
[1646556421173,0.80473583,39241.0,39240.0,1.23460613]
[1646556422171,0.59749295,39241.0,39240.0,1.23460613]
[1646556422573,0.80476997,39241.0,39240.0,1.23460613]
[1646556425620,0.59749295,39241.0,39240.0,1.23460613]
[1646556425920,0.80474489,39241.0,39240.0,1.23460613]
[1646556426321,0.58905294,39241.0,39240.0,1.23460613]
[1646556426785,0.35947997,39242.0,39240.0,1.23460613]
[1646556427184,0.20947997,39242.0,39240.0,1.23460613]
[1646556427584,0.20925844,39242.0,39240.0,1.23460613]
[1646556428187,0.0020065,39242.0,39240.0,1.23460613]
[1646556428393,0.20925844,39242.0,39240.0,1.23460613]
[1646556429187,0.00102883,39241.0,39240.0,1.23460613]
[1646556429589,0.38282983,39241.0,39240.0,1.23460613]
[1646556432522,0.59008177,39241.0,39240.0,1.23460613]
[1646556433122,0.38282983,39241.0,39240.0,1.23460613]
[1646556433723,0.00102883,39241.0,39240.0,1.23460613]
[1646556433924,0.38282983,39241.0,39240.0,1.23460613]
[1646556434769,0.00102883,39241.0,39240.0,1.23460613]
[1646556434966,0.38282983,39241.0,39240.0,1.23460613]
[1646556435365,0.00102883,39241.0,39240.0,1.23460613]
[1646556435565,0.38282983,39241.0,39240.0,1.23460613]
[1646556435967,0.00102883,39241.0,39240.0,1.23460613]
[1646556436566,0.38282983,39241.0,39240.0,1.23460613]
[1646556437271,0.59008177,39241.0,39240.0,1.23460613]
[1646556438122,0.38282983,39241.0,39240.0,1.23460613]
[1646556441422,0.38282983,39241.0,39240.0,1.23452813]
[1646556444579,0.59017881,39241.0,39240.0,1.23452813]
[1646556445178,0.38282983,39241.0,39240.0,1.23452813]
[1646556445926,0.44240579,39241.0,39240.0,1.23452813]
[1646556446124,1.05,39240.0,39236.0,0.00010606]
[1646556446324,0.25906708,39238.0,39236.0,0.00010606]
[1646556446521,0.681801,39239.0,39236.0,0.00010606]
[1646556446522,0.64086808,39237.0,39236.0,0.00010606]
[1646556446922,0.85569685,39237.0,39236.0,0.00010606]
[1646556447123,1.21990871,39237.0,39236.0,0.00010606]
[1646556447322,1.36990871,39237.0,39236.0,0.00010606]
[1646556448422,1.11084163,39237.0,39236.0,0.00010606]
[1646556449025,1.42126421,39237.0,39236.0,0.00010606]
[1646556449473,2.19686421,39237.0,39236.0,0.00010606]
[1646556449671,1.88644163,39237.0,39236.0,0.00010606]
[1646556450371,2.19686421,39237.0,39236.0,0.00010606]
[1646556451171,0.1918339,39229.0,39222.0,0.36227703]
[1646556451375,0.1918339,39229.0,39220.0,0.26099594]
[1646556451574,0.1918339,39229.0,39220.0,0.45610836]
[1646556451877,0.20645954,39225.0,39220.0,0.26099594]
[1646556452074,0.20645954,39225.0,39219.0,0.29844193]
[1646556452272,0.31829936,39228.0,39221.0,0.2186228]
[1646556453225,0.1,39231.0,39221.0,0.2186228]
[1646556453226,0.1595465,39226.0,39221.0,0.2186228]
[1646556453424,0.31829936,39230.0,39221.0,0.2186228]
[1646556454124,0.49265256,39230.0,39221.0,0.2186228]
[1646556454726,0.31829936,39230.0,39221.0,0.2186228]
[1646556456325,0.31829936,39230.0,39221.0,0.42751608]
[1646556457475,0.31829936,39233.0,39222.0,0.20889328]
[1646556457674,0.1686,39234.0,39223.0,0.20889328]
[1646556457877,0.1686,39234.0,39224.0,0.20889328]
[1646556458073,0.1686,39234.0,39227.0,0.17080005]
[1646556458274,0.31829936,39235.0,39227.0,0.17080005]
[1646556458472,0.31818743,39235.0,39227.0,0.17080005]
[1646556459072,0.53274063,39235.0,39227.0,0.17080005]
[1646556459273,0.31818743,39235.0,39227.0,0.17080005]
[1646556459674,0.00101745,39229.0,39227.0,0.17080005]
[1646556464370,0.00101745,39229.0,39226.0,0.003]
[1646556465474,0.00101745,39229.0,39225.0,0.41708625]
[1646556467172,0.03827118,39233.0,39226.0,0.35]
[1646556467373,0.03827118,39233.0,39225.0,0.41708625]
[1646556467374,0.03827118,39233.0,39225.0,0.46798625]
[1646556468023,0.31829936,39235.0,39225.0,0.46798625]
[1646556469019,0.35619127,39235.0,39225.0,0.46798625]
[1646556469220,0.52660862,39235.0,39225.0,0.46798625]
[1646556469421,0.00100512,39228.0,39225.0,0.46798625]
[1646556471983,0.00100512,39228.0,39226.0,0.20889328]
[1646556472182,0.00100512,39228.0,39225.0,0.41708625]
[1646556472685,0.00100512,39228.0,39226.0,0.20889328]
[1646556474083,0.48871671,39235.0,39226.0,0.20889328]
[1646556475625,0.31829936,39235.0,39226.0,0.20889328]
[1646556476625,0.16940981,39234.0,39226.0,0.20889328]
[1646556478424,0.31829936,39233.0,39226.0,0.20889328]
[1646556478825,0.16940981,39234.0,39226.0,0.20889328]
[1646556479271,0.51416781,39233.0,39226.0,0.20889328]
[1646556480877,0.19586845,39233.0,39227.0,0.20889328]
[1646556481275,0.15482749,39233.0,39227.0,0.20889328]
[1646556481676,0.47194871,39233.0,39227.0,0.20889328]
[1646556481876,0.15482749,39233.0,39227.0,0.20889328]
[1646556482277,0.47194871,39233.0,39227.0,0.20889328]
[1646556482476,0.47194871,39233.0,39226.0,0.20889328]
[1646556482677,0.31712122,39233.0,39227.0,0.20889328]
[1646556482880,0.16940981,39234.0,39227.0,0.20889328]
[1646556483118,0.31712122,39233.0,39226.0,0.20889328]
[1646556483920,0.50504325,39233.0,39226.0,0.20889328]
[1646556484619,0.50504325,39233.0,39227.0,0.20889328]
[1646556485521,0.18792203,39233.0,39227.0,0.20889328]
[1646556485720,0.50504325,39233.0,39227.0,0.20889328]
[1646556486323,0.381801,39232.0,39225.0,0.20889328]
[1646556486623,0.38903874,39231.0,39223.0,0.21089328]
[1646556486872,0.17656927,39227.0,39223.0,0.21089328]
[1646556487072,0.31712122,39226.0,39223.0,0.21089328]
[1646556487373,0.38917593,39227.0,39223.0,0.21089328]
[1646556487973,0.38917593,39227.0,39223.0,0.20889328]
[1646556488274,0.31712122,39226.0,39223.0,0.20889328]
[1646556488477,0.31712122,39226.0,39222.0,0.21189328]
[1646556488679,0.381801,39225.0,39222.0,0.003]
[1646556488873,0.31712122,39224.0,39222.0,0.003]
[1646556489071,0.381801,39223.0,39222.0,0.003]
[1646556489273,0.69892222,39223.0,39222.0,0.003]
[1646556489475,0.69892222,39223.0,39216.0,0.00104409]
[1646556489674,0.17893078,39221.0,39216.0,0.00104409]
[1646556489874,0.69892222,39220.0,39216.0,0.00104409]
[1646556490079,0.381801,39219.0,39212.0,0.26099594]
[1646556490273,0.31712122,39218.0,39216.0,0.00020879]
[1646556491228,0.381801,39217.0,39212.0,0.26099594]
[1646556491424,0.31712122,39216.0,39215.0,0.00020877]
[1646556491624,0.381801,39216.0,39215.0,0.00020877]
[1646556492431,0.0663512,39212.0,39206.0,0.37787424]
[1646556492629,0.0663512,39212.0,39204.0,0.31297221]
[1646556492630,0.69221222,39211.0,39204.0,0.31297221]
[1646556492830,0.68550222,39211.0,39208.0,0.00083522]
[1646556493528,0.18465444,39210.0,39208.0,0.00083522]
[1646556493732,0.18465444,39210.0,39204.0,0.17729057]
[1646556493733,0.381801,39209.0,39204.0,0.17729057]
[1646556493930,0.381805,39207.0,39204.0,0.17729057]
[1646556494126,0.381805,39206.0,39204.0,0.17729057]
[1646556494386,0.381805,39207.0,39204.0,0.17729057]
[1646556494593,0.69892622,39206.0,39201.0,0.0031]
[1646556494788,0.381805,39205.0,39201.0,0.0031]
[1646556495195,0.61977446,39205.0,39201.0,0.0031]
[1646556495590,0.61977446,39205.0,39201.0,0.0021]
[1646556495591,0.381805,39202.0,39201.0,0.0021]
[1646556496392,0.61958007,39202.0,39201.0,0.0021]
[1646556496590,0.381805,39202.0,39201.0,0.0021]
[1646556497192,0.05821322,39200.0,39191.0,0.18493853]
[1646556497392,0.31712122,39199.0,39191.0,0.18493853]
[1646556497593,0.381805,39201.0,39194.0,0.00089404]
[1646556497792,0.31875682,39200.0,39194.0,0.00089404]
[1646556498025,0.381805,39198.0,39197.0,0.2091796]
[1646556498225,0.56495521,39198.0,39197.0,0.2091796]
[1646556498426,0.381805,39198.0,39197.0,0.2091796]
[1646556499030,0.31875682,39203.0,39197.0,0.2091796]
[1646556499227,0.381805,39202.0,39197.0,0.2091796]
[1646556499425,0.31875682,39201.0,39197.0,0.2091796]
[1646556499825,0.31875682,39201.0,39198.0,0.00022709]
[1646556500226,0.32075682,39206.0,39198.0,0.00022709]
[1646556500826,0.32075682,39206.0,39197.0,0.2091796]
[1646556501026,0.32075682,39206.0,39200.0,0.00022708]
[1646556501226,0.002,39206.0,39203.0,0.16897011]
[1646556501627,0.31875682,39210.0,39203.0,0.16897011]
[1646556501628,0.36875682,39210.0,39203.0,0.16897011]
[1646556501875,0.381805,39209.0,39203.0,0.16897011]
[1646556502073,0.31875682,39208.0,39192.0,0.39653578]
[1646556502272,0.31875682,39208.0,39205.0,0.0002153]
[1646556502472,0.36875682,39210.0,39205.0,0.0002153]
[1646556502973,0.15054103,39207.0,39205.0,0.0002153]
[1646556503171,0.70056182,39206.0,39205.0,0.0002153]
[1646556503371,0.31875682,39206.0,39200.0,0.21611784]
[1646556503571,0.381805,39208.0,39204.0,0.0002153]
[1646556503771,0.381805,39206.0,39204.0,0.0002153]
[1646556504372,0.31875682,39209.0,39204.0,0.0002153]
[1646556504672,0.31875682,39209.0,39203.0,0.0002153]
[1646556505373,0.381805,39208.0,39203.0,0.0002153]
[1646556505624,0.381805,39208.0,39200.0,0.21611784]
[1646556505822,0.31875682,39209.0,39204.0,0.00020837]
[1646556506025,0.381805,39208.0,39204.0,0.00020837]
[1646556506223,0.31875682,39207.0,39204.0,0.00020837]
[1646556506422,0.31875682,39209.0,39204.0,0.00020837]
[1646556506623,0.381805,39208.0,39204.0,0.00020837]
[1646556507127,0.31875682,39207.0,39204.0,0.00020837]
[1646556507324,0.381805,39206.0,39204.0,0.00020837]
[1646556507524,0.31875682,39205.0,39204.0,0.00020837]
[1646556507725,0.381805,39207.0,39204.0,0.00020837]
[1646556508023,0.31875682,39206.0,39193.0,0.02538]
[1646556508223,0.15989246,39205.0,39204.0,0.00020837]
[1646556508423,0.54169746,39205.0,39204.0,0.00020837]
[1646556509023,0.86045428,39205.0,39204.0,0.00020837]
[1646556509283,0.86045428,39205.0,39195.0,0.17542654]
[1646556509490,0.47864928,39205.0,39203.0,0.00020886]
[1646556509685,0.381805,39204.0,39203.0,0.00020886]
[1646556510090,0.70056182,39204.0,39203.0,0.00020886]
[1646556510286,0.31875682,39204.0,39203.0,0.00020886]
[1646556510488,0.31875682,39204.0,39195.0,0.17542654]
[1646556510887,0.31875682,39204.0,39202.0,0.00020887]
[1646556511088,0.16189246,39205.0,39202.0,0.00020887]
[1646556511289,0.31875682,39204.0,39202.0,0.00020887]
[1646556511688,0.381805,39207.0,39195.0,0.17542654]
[1646556511889,0.31875682,39206.0,39201.0,0.00020887]
[1646556512091,0.20282216,39205.0,39201.0,0.00020887]
[1646556512288,0.31875682,39204.0,39201.0,0.00020887]
[1646556512488,0.50715446,39204.0,39201.0,0.00020887]
[1646556512887,0.50715446,39204.0,39195.0,0.17542654]
[1646556513120,0.50715446,39204.0,39201.0,0.00020881]
[1646556513719,0.50820707,39204.0,39201.0,0.00020881]
[1646556514121,0.50820707,39204.0,39195.0,0.17542654]
[1646556514322,0.50820707,39204.0,39201.0,0.00020881]
[1646556515323,0.50820707,39204.0,39195.0,0.17542654]
[1646556515623,0.50820707,39204.0,39201.0,0.00020881]
[1646556515823,0.18945025,39204.0,39201.0,0.00020881]
[1646556516323,0.50820707,39204.0,39201.0,0.00020881]
[1646556516523,0.50820707,39204.0,39195.0,0.17542654]
[1646556516774,0.50820707,39204.0,39201.0,0.00020882]
[1646556516974,0.381805,39203.0,39201.0,0.00020882]
[1646556517174,0.00041764,39200.0,39195.0,0.0008354]
[1646556517379,0.31917446,39200.0,39195.0,0.0008354]
[1646556517772,0.18290548,39199.0,39191.0,0.3207]
[1646556517973,0.17008933,39198.0,39191.0,0.3207]
[1646556518373,0.17008933,39198.0,39191.0,0.15]
[1646556518573,0.17008933,39198.0,39191.0,0.05]
[1646556518773,0.31875682,39197.0,39189.0,0.11274]
[1646556518972,0.31875682,39197.0,39189.0,0.06274]
[1646556519172,0.31875682,39197.0,39189.0,0.11274]
[1646556519173,0.48445112,39197.0,39189.0,0.11274]
[1646556519573,0.48445112,39197.0,39189.0,0.1]
[1646556520172,0.48445112,39197.0,39188.0,0.1031]
[1646556520374,0.48445112,39197.0,39188.0,0.09822268]
[1646556521527,0.06055922,39189.0,39187.0,0.0041]
[1646556521729,0.06055922,39189.0,39186.0,0.0041]
[1646556521730,0.95,39187.0,39186.0,0.0031]
[1646556521928,0.95,39187.0,39185.0,0.0041]
[1646556521929,0.95,39187.0,39185.0,0.0031]
[1646556521930,0.8,39186.0,39185.0,0.0031]
[1646556522128,1.11875682,39186.0,39185.0,0.0031]
[1646556522532,1.55056182,39186.0,39185.0,0.0031]
[1646556522727,1.65056182,39186.0,39185.0,0.0031]
[1646556522928,1.05,39184.0,39181.0,0.0041]
[1646556523128,0.31875682,39183.0,39181.0,0.0041]
[1646556524675,0.70056182,39183.0,39181.0,0.0041]
[1646556525079,0.70056182,39183.0,39182.0,0.0031]
[1646556525878,0.70056182,39183.0,39182.0,0.0021]
[1646556526077,0.80056182,39183.0,39182.0,0.0021]
[1646556526881,0.80056182,39183.0,39181.0,0.00422256]
[1646556526882,1.431805,39182.0,39181.0,0.00222256]
[1646556527079,1.431805,39181.0,39180.0,0.00032256]
[1646556529325,0.08777,39183.0,39180.0,0.00032256]
[1646556529326,0.003,39183.0,39180.0,0.00032256]
[1646556529926,0.003,39183.0,39181.0,0.016264]
[1646556530331,0.165,39191.0,39180.0,0.05146043]
[1646556530530,0.19419985,39190.0,39180.0,0.05146043]
[1646556530930,0.55,39188.0,39178.0,0.12015888]
[1646556531132,0.31875682,39191.0,39180.0,0.00023788]
[1646556531335,0.31875682,39190.0,39184.0,0.1813712]
[1646556531534,0.51004991,39192.0,39184.0,0.1813712]
[1646556531773,0.31645282,39191.0,39184.0,0.1813712]
[1646556531979,0.31645282,39191.0,39180.0,0.05113788]
[1646556532174,0.31645282,39191.0,39180.0,0.0509]
[1646556533078,0.31645282,39191.0,39183.0,0.21512272]
[1646556533275,0.39219796,39192.0,39183.0,0.21512272]
[1646556533775,0.20090487,39192.0,39183.0,0.21512272]
[1646556533974,0.31645282,39191.0,39183.0,0.21512272]
[1646556534575,0.13812,39198.0,39183.0,0.21512272]
[1646556534576,0.31645282,39197.0,39183.0,0.21512272]
[1646556534878,0.31645282,39197.0,39189.0,0.20303451]
[1646556535078,0.381805,39196.0,39189.0,0.20303451]
[1646556535278,0.381805,39194.0,39189.0,0.20303451]
[1646556535546,0.11274,39198.0,39185.0,0.0509]
[1646556535547,0.31645282,39197.0,39185.0,0.0509]
[1646556535751,0.18717769,39194.0,39185.0,0.0509]
[1646556536146,0.31645282,39197.0,39185.0,0.0509]
[1646556536346,0.1,39198.0,39186.0,0.31645282]
[1646556536549,0.1,39198.0,39190.0,0.19383845]
[1646556536751,0.00041764,39200.0,39190.0,0.18983845]
[1646556536955,0.00041764,39200.0,39191.0,0.36735282]
[1646556537248,0.00041764,39200.0,39191.0,0.0509]
[1646556537448,0.00041764,39200.0,39191.0,0.36735282]
[1646556537648,0.00041764,39200.0,39196.0,0.16245281]
[1646556537849,0.00041764,39200.0,39197.0,0.31645282]
[1646556538048,0.00041764,39200.0,39196.0,0.21335281]
[1646556538951,0.00041764,39200.0,39197.0,0.016239]
[1646556539149,0.00041764,39200.0,39198.0,0.0509]
[1646556540404,0.20686432,39199.0,39198.0,0.0509]
[1646556543227,0.58866932,39199.0,39194.0,0.002]
[1646556543424,0.381805,39198.0,39194.0,0.002]
[1646556543824,0.381805,39198.0,39186.0,0.31645282]
[1646556544023,0.21433471,39193.0,39185.0,0.1576]
[1646556544223,0.23224432,39199.0,39184.0,0.5088]
[1646556544224,0.23224432,39199.0,39184.0,0.0509]
[1646556544424,0.23224432,39199.0,39187.0,0.21485827]
[1646556545023,0.381805,39198.0,39187.0,0.21485827]
[1646556545223,0.30247037,39199.0,39184.0,0.0509]
[1646556545427,0.30247037,39199.0,39183.0,0.005]
[1646556545428,0.02538,39197.0,39183.0,0.005]
[1646556545627,0.02828,39195.0,39183.0,0.005]
[1646556545828,0.02538,39193.0,39183.0,0.005]
[1646556546027,0.381805,39192.0,39183.0,0.005]
[1646556546231,0.56262695,39190.0,39180.0,0.71476368]
[1646556546427,0.18082195,39190.0,39182.0,0.003]
[1646556546624,0.20683902,39187.0,39182.0,0.003]
[1646556546876,0.18082195,39190.0,39182.0,0.003]
[1646556547084,0.1,39195.0,39182.0,0.003]
[1646556547279,0.006,39181.0,39180.0,0.21646368]
[1646556548280,0.006,39181.0,39180.0,0.23272968]
[1646556549084,0.006,39181.0,39180.0,0.016266]
[1646556550284,0.006,39181.0,39180.0,0.23076374]
[1646556551131,0.006,39181.0,39180.0,0.28166374]
[1646556551332,0.006,39181.0,39180.0,0.5258559]
[1646556551535,0.0001,39181.0,39180.0,0.7386159]
[1646556551730,0.0001,39181.0,39180.0,0.95089374]
[1646556551929,0.0001,39181.0,39180.0,0.65961134]
[1646556552129,0.31645282,39198.0,39181.0,1.05]
[1646556552331,0.20600174,39193.0,39190.0,0.16504382]
[1646556552531,0.31645282,39198.0,39190.0,0.16504382]
[1646556553531,0.2038733,39197.0,39190.0,0.16504382]
[1646556553731,0.31645282,39196.0,39190.0,0.16504382]
[1646556554890,0.2038733,39197.0,39190.0,0.16504382]
[1646556555091,0.31645282,39196.0,39190.0,0.16504382]
[1646556555494,0.2038733,39197.0,39190.0,0.16504382]
[1646556555891,0.31645282,39196.0,39190.0,0.16504382]
[1646556556092,0.2038733,39197.0,39190.0,0.16504382]
[1646556557093,0.31645282,39196.0,39190.0,0.16504382]
[1646556557495,0.2038733,39197.0,39190.0,0.16504382]
[1646556557694,0.31645282,39198.0,39190.0,0.16504382]
[1646556557895,0.31645282,39198.0,39191.0,0.0509]
[1646556558163,0.381805,39197.0,39191.0,0.0509]
[1646556558358,0.31645282,39196.0,39191.0,0.0509]
[1646556558557,0.20813481,39195.0,39191.0,0.0509]
[1646556558759,0.31645282,39198.0,39191.0,0.0509]
[1646556558956,0.381805,39197.0,39191.0,0.0509]
[1646556559158,0.31645282,39196.0,39191.0,0.0509]
[1646556559461,0.31645282,39198.0,39191.0,0.0509]
[1646556559958,0.381805,39197.0,39191.0,0.0509]
[1646556560163,0.381805,39195.0,39187.0,0.004]
[1646556560359,0.381805,39195.0,39183.0,0.7115]
[1646556560360,0.381805,39193.0,39186.0,0.0509]
[1646556560561,0.31645282,39192.0,39183.0,0.7115]
[1646556560759,0.381805,39197.0,39184.0,0.0509]
[1646556560961,0.31645282,39196.0,39187.0,0.17628714]
[1646556561161,0.17576145,39191.0,39187.0,0.17628714]
[1646556561661,0.381805,39196.0,39187.0,0.17628714]
[1646556561878,0.381805,39194.0,39187.0,0.17628714]
[1646556562082,0.31645282,39193.0,39184.0,0.2203]
[1646556562278,0.31645282,39196.0,39184.0,0.0509]
[1646556562478,0.31745282,39196.0,39184.0,0.0509]
[1646556563080,0.16591193,39190.0,39186.0,0.18233918]
[1646556563279,0.31745282,39196.0,39186.0,0.18233918]
[1646556563480,0.381805,39195.0,39186.0,0.18233918]
[1646556563681,0.31645282,39194.0,39186.0,0.18233918]
[1646556563881,0.381805,39195.0,39186.0,0.18233918]
[1646556564079,0.31645282,39196.0,39186.0,0.18233918]
[1646556564080,0.31645282,39194.0,39186.0,0.18233918]
[1646556564281,0.31645282,39196.0,39186.0,0.18233918]
[1646556564980,0.52369375,39196.0,39186.0,0.18233918]
[1646556565382,0.31645282,39196.0,39192.0,0.20974854]
[1646556565631,0.20724093,39198.0,39192.0,0.20974854]
[1646556565831,0.00041764,39200.0,39194.0,0.016233]
[1646556566032,0.00041764,39200.0,39192.0,0.20974854]
[1646556566230,0.00041764,39200.0,39193.0,0.0509]
[1646556566432,0.16430043,39199.0,39193.0,0.0509]
[1646556566832,0.48075325,39199.0,39193.0,0.0509]
[1646556567034,0.381805,39198.0,39193.0,0.0509]
[1646556567236,0.48075325,39199.0,39193.0,0.0509]
[1646556567237,0.31645282,39197.0,39193.0,0.0509]
[1646556567432,0.381805,39196.0,39193.0,0.0509]
[1646556567634,0.31645282,39197.0,39193.0,0.0509]
[1646556568033,0.381805,39196.0,39193.0,0.0509]
[1646556568234,0.31645282,39197.0,39193.0,0.0509]
[1646556568435,0.381805,39196.0,39193.0,0.0509]
[1646556568935,0.31645282,39197.0,39193.0,0.0509]
[1646556571390,0.17865461,39194.0,39193.0,0.0509]
[1646556571593,0.90229243,39194.0,39184.0,0.4053]
[1646556571791,0.381805,39193.0,39184.0,0.4053]
[1646556571990,0.31645282,39192.0,39184.0,0.4053]
[1646556572394,0.31645282,39192.0,39182.0,0.1592]
[1646556575638,0.381805,39191.0,39179.0,0.004]
[1646556575938,0.31645282,39190.0,39178.0,0.00022212]
[1646556576537,0.16966956,39187.0,39178.0,0.00022212]
[1646556576778,0.31645282,39186.0,39179.0,0.19852271]
[1646556577180,0.31645282,39190.0,39179.0,0.19852271]
[1646556577877,0.19821776,39189.0,39179.0,0.19852271]
[1646556578078,0.31645282,39188.0,39179.0,0.19852271]
[1646556578476,0.52437672,39188.0,39179.0,0.19852271]
[1646556579278,0.52437672,39188.0,39178.0,0.00510625]
[1646556579881,0.52437672,39188.0,39178.0,0.00010625]
[1646556580283,0.52437672,39188.0,39177.0,0.01604758]
[1646556580533,0.52437672,39188.0,39178.0,0.00011016]
[1646556580732,0.54975672,39188.0,39178.0,0.00011016]
[1646556581549,0.381805,39187.0,39178.0,0.00011016]
[1646556581735,0.54975672,39188.0,39177.0,0.02182726]
[1646556581736,1.05,39184.0,39177.0,0.02182726]
[1646556581937,1.05,39184.0,39177.0,0.01582726]
[1646556581938,0.69825782,39183.0,39177.0,0.01582726]
[1646556582132,0.69825782,39183.0,39177.0,0.00308726]
[1646556582433,0.2037043,39179.0,39177.0,0.00308726]
[1646556582634,0.31645282,39178.0,39177.0,0.00308726]
[1646556583434,0.2037043,39179.0,39177.0,0.00308726]
[1646556583635,0.31645282,39178.0,39177.0,0.00308726]
[1646556584036,0.31645282,39183.0,39177.0,0.00308726]
[1646556584277,1.2189,39184.0,39177.0,0.00308726]
[1646556584577,0.31645282,39183.0,39177.0,0.00308726]
[1646556584783,1.2189,39184.0,39177.0,0.00308726]
[1646556584978,1.2189,39184.0,39179.0,0.1918801]
[1646556585182,1.05,39184.0,39179.0,0.1918801]
[1646556587884,1.05,39184.0,39177.0,0.00308726]
[1646556588729,0.31645282,39183.0,39180.0,0.16279062]
[1646556589029,1.05,39184.0,39180.0,0.16279062]
[1646556591030,1.05,39184.0,39178.0,0.00161053]
[1646556591031,0.31645282,39183.0,39178.0,0.00161053]
[1646556591630,1.05,39184.0,39178.0,0.00161053]
[1646556593083,0.31645282,39183.0,39178.0,0.00161053]
[1646556593980,0.31645282,39183.0,39177.0,0.00308726]
[1646556596127,0.17123303,39182.0,39177.0,0.00308726]
[1646556596430,0.31645282,39181.0,39177.0,0.00308726]
[1646556597026,0.31645282,39183.0,39177.0,0.00308726]
[1646556598829,0.31645282,39183.0,39178.0,0.00161053]
[1646556602587,1.05,39184.0,39178.0,0.00161053]
[1646556602786,0.003,39186.0,39179.0,0.016271]
[1646556603055,0.003,39186.0,39180.0,0.652063]
[1646556603248,0.003,39186.0,39181.0,0.36735282]
[1646556603452,0.003,39186.0,39182.0,0.01626]
[1646556603650,0.003,39186.0,39184.0,0.016258]
[1646556603847,0.003,39186.0,39185.0,0.0509]
[1646556604048,0.73577869,39197.0,39190.0,0.17003544]
[1646556604349,0.73577869,39197.0,39191.0,0.0509]
[1646556604350,0.42520856,39197.0,39191.0,0.0509]
[1646556604550,0.31645282,39196.0,39186.0,0.016242]
[1646556604848,0.31645282,39196.0,39191.0,0.0509]
[1646556605446,0.42520856,39197.0,39191.0,0.0509]
[1646556605763,0.80098,39194.0,39184.0,0.003]
[1646556605949,0.80098,39194.0,39177.0,0.00308726]
[1646556605950,0.07180849,39183.0,39177.0,0.00308726]
[1646556606151,0.69825782,39182.0,39177.0,0.00308726]
[1646556606349,0.73452617,39182.0,39177.0,0.00308726]
[1646556606650,0.18884887,39181.0,39177.0,0.00308726]
[1646556606876,0.69825782,39180.0,39177.0,0.00308726]
[1646556607079,0.69825782,39180.0,39177.0,0.00231726]
[1646556607476,0.381805,39178.0,39177.0,0.00231726]
[1646556607675,0.69825782,39178.0,39177.0,0.00231726]
[1646556609078,3.04303635,39178.0,39177.0,0.00231726]
[1646556609278,3.04303635,39178.0,39176.0,0.00120595]
[1646556609279,1.05,39177.0,39176.0,0.00120595]
[1646556609481,1.84825782,39177.0,39176.0,0.00120595]
[1646556610277,1.84825782,39177.0,39176.0,0.0011]
[1646556611729,0.03169008,39168.0,39165.0,0.001]
[1646556611928,0.03169008,39168.0,39167.0,0.00189372]
[1646556612927,0.03169008,39168.0,39167.0,0.00089372]
[1646556613328,0.03169008,39168.0,39161.0,0.00119372]
[1646556613932,0.21228145,39165.0,39161.0,0.00119372]
[1646556614129,0.31645282,39167.0,39163.0,0.00010659]
[1646556614381,0.20377565,39167.0,39163.0,0.00010659]
[1646556614580,0.52022847,39167.0,39163.0,0.00010659]